fUSD/lending_fUSD_20240427
["ID","MTS","AMOUNT","RATE_DAILY","PERIOD"]
[323731240,1714215033268,-500.0,0.00011226,2]
[323731241,1714215033279,-1837.11,0.00011226,2]
[323731242,1714215033290,-500.0,0.00011226,2]
[323731243,1714215033300,-1624.86,0.00011226,2]
[323731244,1714215033312,-240.24,0.00011226,2]
[323731245,1714215033322,-559.46,0.00011226,2]
[323731246,1714215033333,-1176.45,0.00011226,2]
[323731247,1714215033344,-500.0,0.00011226,2]
[323731248,1714215033358,-567.04,0.00011226,2]
[323731249,1714215033368,-500.0,0.00011226,2]
[323731250,1714215033379,-385.41,0.00011226,2]
[323731251,1714215033390,-1803.07,0.00011226,2]
[323731252,1714215033399,-500.0,0.00011226,2]
[323731253,1714215033409,-500.0,0.00011226,2]
[323731254,1714215033418,-500.0,0.00011226,2]
[323731255,1714215033430,-532.44366524,0.00011226,2]
[323731256,1714215033440,-500.0,0.00011226,2]
[323731257,1714215033450,-500.0,0.00011226,2]
[323731258,1714215033461,-215.76492962,0.00011226,2]
[323731259,1714215033471,-6009.06,0.00011226,2]
[323731260,1714215033481,-298.84757904,0.00011227,2]
[323731261,1714215033491,-500.0,0.00011227,2]
[323731262,1714215033502,-581.7,0.00011227,2]
[323731263,1714215033513,-360.61542317,0.00011227,2]
[323731264,1714215033524,-547.5,0.00011227,2]
[323731265,1714215033534,-500.0,0.00011227,2]
[323731266,1714215033545,-151.0,0.00011227,2]
[323731267,1714215033556,-500.0,0.00011227,2]
[323731268,1714215033566,-151.0,0.00011227,2]
[323731269,1714215033577,-500.0,0.00011227,2]
[323731270,1714215033587,-500.0,0.00011227,2]
[323731271,1714215033600,-500.0,0.00011227,2]
[323731272,1714215033610,-500.0,0.00011227,2]
[323731273,1714215033620,-418.75,0.00011227,2]
[323731274,1714215033631,-168.15745303,0.00011227,2]
[323731275,1714215033641,-500.0,0.00011227,2]
[323731276,1714215033651,-500.0,0.00011227,2]
[323731277,1714215033661,-500.0,0.00011227,2]
[323731278,1714215033671,-500.0,0.00011227,2]
[323731279,1714215033682,-500.0,0.00011227,2]
[323731280,1714215033693,-289.12794368,0.00011227,2]
[323731281,1714215033703,-500.0,0.00011227,2]
[323731282,1714215033713,-507.52359149,0.00011227,2]
[323731283,1714215033723,-500.0,0.00011227,2]
[323731284,1714215033733,-586.16,0.00011227,2]
[323731285,1714215033744,-500.0,0.00011227,2]
[323731286,1714215033755,-500.0,0.00011227,2]
[323731287,1714215033765,-558.2,0.00011227,2]
[323731288,1714215033776,-500.0,0.00011227,2]
[323731289,1714215033787,-356.86918121,0.00011227,2]
[323731290,1714215033798,-500.0,0.00011227,2]
[323731291,1714215033809,-289.894336,0.00011227,2]
[323731292,1714215033819,-451.07257657,0.00011227,2]
[323731293,1714215033828,-500.0,0.00011227,2]
[323731294,1714215033839,-500.0,0.00011227,2]
[323731295,1714215033849,-500.0,0.00011227,2]
[323731296,1714215033860,-500.0,0.00011227,2]
[323731297,1714215033870,-500.0,0.00011227,2]
[323731298,1714215033879,-501.82784784,0.00011227,2]
[323731299,1714215033888,-500.0,0.00011227,2]
[323731300,1714215033897,-500.0,0.00011227,2]
[323731301,1714215033906,-500.0,0.00011227,2]
[323731302,1714215033915,-500.0,0.00011227,2]
[323731303,1714215033924,-500.0,0.00011227,2]
[323731304,1714215033933,-500.0,0.00011227,2]
[323731305,1714215033943,-500.0,0.00011227,2]
[323731306,1714215033952,-578.0,0.00011227,2]
[323731307,1714215033961,-500.0,0.00011227,2]
[323731308,1714215033971,-500.0,0.00011227,2]
[323731309,1714215033983,-521.16009206,0.00011227,2]
[323731310,1714215033992,-151.0,0.00011227,2]
[323731311,1714215034001,-151.0,0.00011227,2]
[323731312,1714215034010,-151.0,0.00011227,2]
[323731313,1714215034020,-500.0,0.00011227,2]
[323731314,1714215034030,-151.0,0.00011227,2]
[323731315,1714215034039,-500.0,0.00011227,2]
[323731316,1714215034048,-500.0,0.00011227,2]
[323731317,1714215034057,-500.0,0.00011227,2]
[323731318,1714215034066,-523.36,0.00011227,2]
[323731319,1714215034075,-500.0,0.00011227,2]
[323731320,1714215034085,-500.0,0.00011227,2]
[323731321,1714215034094,-500.0,0.00011227,2]
[323731322,1714215034106,-500.0,0.00011227,2]
[323731324,1714215034116,-500.0,0.00011227,2]
[323731325,1714215034125,-500.0,0.00011227,2]
[323731326,1714215034134,-500.0,0.00011227,2]
[323731327,1714215034144,-472.4454264,0.00011227,2]
[323731328,1714215034153,-500.0,0.00011227,2]
[323731329,1714215034162,-500.0,0.00011227,2]
[323731330,1714215034171,-500.0,0.00011227,2]
[323731331,1714215034180,-500.0,0.00011227,2]
[323731332,1714215034189,-500.0,0.00011227,2]
[323731333,1714215034198,-467.98289917,0.00011227,2]
[323731334,1714215034208,-500.0,0.00011227,2]
[323731335,1714215034217,-286.68246369,0.00011227,2]
[323731336,1714215034242,-261.84337,0.00011227,2]
[323731337,1714215034251,-500.0,0.00011227,2]
[323731338,1714215034260,-500.0,0.00011227,2]
[323731339,1714215034271,-500.0,0.00011227,2]
[323731340,1714215034280,-500.0,0.00011227,2]
[323731341,1714215034290,-420.28521524,0.00011227,2]
[323731342,1714215034300,-151.0,0.00011227,2]
[323731343,1714215034309,-151.0,0.00011227,2]
[323731344,1714215034319,-151.0,0.00011227,2]
[323731345,1714215034329,-243.996541,0.00011227,2]
[323731346,1714215034338,-500.0,0.00011227,2]
[323731347,1714215034348,-500.0,0.00011227,2]
[323731348,1714215034358,-176.74,0.00011227,2]
[323731349,1714215034372,-500.0,0.00011227,2]
[323731350,1714215034382,-950.14,0.00011227,2]
[323731351,1714215034391,-509.90981004,0.00011227,2]
[323731352,1714215034400,-429.4750611,0.00011227,2]
[323731353,1714215034410,-596.991825,0.00011227,2]
[323731354,1714215034419,-596.991825,0.00011227,2]
[323731355,1714215034428,-596.991825,0.00011227,2]
[323731356,1714215034438,-596.991825,0.00011227,2]
[323731357,1714215034447,-596.991825,0.00011227,2]
[323731358,1714215034456,-596.991825,0.00011227,2]
[323731359,1714215034466,-596.991825,0.00011227,2]
[323731360,1714215034475,-596.991825,0.00011227,2]
[323731361,1714215034485,-500.0,0.00011227,2]
[323731362,1714215034494,-197.12,0.00011227,2]
[323731363,1714215034504,-500.0,0.00011227,2]
[323731364,1714215034513,-500.0,0.00011227,2]
[323731365,1714215034522,-183.76,0.00011227,2]
[323731366,1714215034532,-500.0,0.00011227,2]
[323731367,1714215034541,-151.0,0.00011227,2]
[323731368,1714215034550,-151.0,0.00011227,2]
[323731369,1714215034560,-151.0,0.00011227,2]
[323731370,1714215034569,-151.0,0.00011227,2]
[323731371,1714215034579,-151.188273,0.00011227,2]
[323731372,1714215034588,-500.0,0.00011227,2]
[323731373,1714215034600,-500.0,0.00011227,2]
[323731374,1714215034611,-595.86137244,0.00011227,2]
[323731375,1714215034620,-500.0,0.00011227,2]
[323731376,1714215034629,-500.0,0.00011227,2]
[323731377,1714215034638,-500.0,0.00011227,2]
[323731378,1714215034647,-500.0,0.00011227,2]
[323731379,1714215034658,-500.0,0.00011227,2]
[323731380,1714215034667,-500.0,0.00011227,2]
[323731381,1714215034677,-1365.56718,0.00011227,2]
[323731382,1714215034686,-1365.56718,0.00011227,2]
[323731383,1714215034695,-1365.56718,0.00011227,2]
[323731384,1714215034704,-1365.56718,0.00011227,2]
[323731385,1714215034715,-500.0,0.00011227,2]
[323731386,1714215034724,-1365.56718,0.00011227,2]
[323731387,1714215034733,-889.05,0.00011227,2]
[323731388,1714215034742,-1365.56718,0.00011227,2]
[323731389,1714215034751,-1365.56718,0.00011227,2]
[323731390,1714215034764,-501.77926185,0.00011227,2]
[323731391,1714215034773,-500.0,0.00011227,2]
[323731392,1714215034782,-1365.56718,0.00011227,2]
[323731393,1714215034792,-1365.56718,0.00011227,2]
[323731394,1714215034801,-1365.56718,0.00011227,2]
[323731395,1714215034811,-267.402257,0.00011227,2]
[323731396,1714215034821,-556.36677378,0.00011227,2]
[323731397,1714215034830,-500.0,0.00011227,2]
[323731398,1714215034839,-500.0,0.00011227,2]
[323731399,1714215034849,-500.0,0.00011227,2]
[323731400,1714215034858,-362.97780513,0.00011227,2]
[323731401,1714215034867,-500.0,0.00011227,2]
[323731402,1714215034876,-713.68,0.00011227,2]
[323731403,1714215034886,-500.0,0.00011227,2]
[323731404,1714215034895,-500.0,0.00011227,2]
[323731405,1714215034905,-648.37893823,0.00011227,2]
[323731406,1714215034913,-500.0,0.00011227,2]
[323731407,1714215034922,-500.0,0.00011227,2]
[323731408,1714215034932,-500.0,0.00011227,2]
[323731409,1714215034941,-500.0,0.00011227,2]
[323731410,1714215034950,-500.0,0.00011227,2]
[323731411,1714215034959,-500.0,0.00011227,2]
[323731412,1714215034969,-500.0,0.00011227,2]
[323731413,1714215034981,-500.0,0.00011227,2]
[323731414,1714215034991,-500.0,0.00011227,2]
[323731415,1714215035000,-500.0,0.00011227,2]
[323731416,1714215035009,-212.56421459,0.00011227,2]
[323731417,1714215035020,-500.0,0.00011227,2]
[323731418,1714215035029,-500.0,0.00011227,2]
[323731419,1714215035039,-151.0,0.00011227,2]
[323731420,1714215035049,-150.0,0.00011227,2]
[323731421,1714215035059,-151.0,0.00011227,2]
[323731422,1714215035069,-151.0,0.00011227,2]
[323731423,1714215035078,-500.0,0.00011227,2]
[323731424,1714215035088,-500.0,0.00011227,2]
[323731425,1714215035098,-151.0,0.00011227,2]
[323731426,1714215035108,-151.0,0.00011227,2]
[323731427,1714215035117,-151.0,0.00011227,2]
[323731428,1714215035126,-293.44044004,0.00011227,2]
[323731429,1714215035136,-164.43860217,0.00011227,2]
[323731430,1714215035145,-500.0,0.00011227,2]
[323731431,1714215035156,-500.0,0.00011227,2]
[323731432,1714215035166,-500.0,0.00011227,2]
[323731433,1714215035403,-500.0,0.00011227,2]
[323731434,1714215035413,-500.0,0.00011227,2]
[323731435,1714215035423,-500.0,0.00011227,2]
[323731436,1714215035434,-525.38322856,0.00011227,2]
[323731437,1714215035443,-500.0,0.00011227,2]
[323731438,1714215035453,-500.0,0.00011227,2]
[323731439,1714215035463,-500.0,0.00011227,2]
[323731440,1714215035473,-207.02535933,0.00011227,2]
[323731441,1714215035483,-365.074974,0.00011227,2]
[323731442,1714215035492,-365.074974,0.00011227,2]
[323731443,1714215035502,-365.074974,0.00011227,2]
[323731444,1714215035512,-365.074974,0.00011227,2]
[323731445,1714215035521,-500.0,0.00011227,2]
[323731446,1714215035531,-365.074974,0.00011227,2]
[323731447,1714215035541,-365.074974,0.00011227,2]
[323731448,1714215035550,-365.074974,0.00011227,2]
[323731449,1714215035560,-365.074974,0.00011227,2]
[323731450,1714215035569,-365.074974,0.00011227,2]
[323731451,1714215035579,-365.074974,0.00011227,2]
[323731452,1714215035588,-365.074974,0.00011227,2]
[323731453,1714215035599,-365.074974,0.00011227,2]
[323731454,1714215035608,-500.0,0.00011227,2]
[323731455,1714215035618,-500.0,0.00011227,2]
[323731456,1714215035628,-500.0,0.00011227,2]
[323731457,1714215035638,-500.0,0.00011227,2]
[323731458,1714215035648,-151.0,0.00011227,2]
[323731459,1714215035657,-151.0,0.00011227,2]
[323731460,1714215035667,-151.0,0.00011227,2]
[323731461,1714215035677,-151.0,0.00011227,2]
[323731462,1714215035687,-151.0,0.00011227,2]
[323731463,1714215035696,-151.0,0.00011227,2]
[323731464,1714215035706,-151.0,0.00011227,2]
[323731465,1714215035727,-151.0,0.00011227,2]
[323731466,1714215035737,-151.0,0.00011227,2]
[323731467,1714215035748,-265.168029,0.00011227,2]
[323731468,1714215035758,-151.0,0.00011227,2]
[323731469,1714215035768,-151.0,0.00011227,2]
[323731470,1714215035778,-151.0,0.00011227,2]
[323731471,1714215035788,-151.0,0.00011227,2]
[323731472,1714215035798,-151.0,0.00011227,2]
[323731473,1714215035808,-151.0,0.00011227,2]
[323731474,1714215035818,-427.78011369,0.00011227,2]
[323731475,1714215035828,-152.14,0.00011227,2]
[323731476,1714215035838,-151.0,0.00011227,2]
[323731477,1714215035849,-151.062594,0.00011227,2]
[323731478,1714215035859,-500.0,0.00011227,2]
[323731479,1714215035868,-500.0,0.00011227,2]
[323731480,1714215035878,-230.430636,0.00011227,2]
[323731481,1714215035888,-151.0,0.00011227,2]
[323731482,1714215035899,-151.0,0.00011227,2]
[323731483,1714215035909,-214.14676,0.00011227,2]
[323731484,1714215035919,-500.0,0.00011227,2]
[323731485,1714215035930,-500.0,0.00011227,2]
[323731486,1714215035940,-133.37021878,0.00011227,2]
[323731487,1714215036234,-82.03802173,0.00011227,2]
[323731488,1714215036244,-333.05919608,0.00011227,2]
[323731489,1714215036256,-166.94080392,0.00011227,2]
[323731490,1714215036266,-92.87369607,0.00011227,2]
[323731491,1714215037208,-407.12630393,0.00011227,2]
[323731492,1714215037218,-500.0,0.00011227,2]
[323731493,1714215037227,-438.29954375,0.00011227,2]
[323731494,1714215037238,-500.0,0.00011227,2]
[323731495,1714215037247,-500.0,0.00011227,2]
[323731496,1714215037257,-500.0,0.00011227,2]
[323731497,1714215037267,-500.0,0.00011227,2]
[323731498,1714215037277,-1648.42,0.00011227,2]
[323731499,1714215037287,-500.0,0.00011227,2]
[323731500,1714215037297,-500.0,0.00011227,2]
[323731501,1714215037306,-500.0,0.00011227,2]
[323731502,1714215037316,-500.0,0.00011227,2]
[323731503,1714215037325,-500.0,0.00011227,2]
[323731504,1714215037334,-500.0,0.00011227,2]
[323731505,1714215037344,-474.58819507,0.00011227,2]
[323731506,1714215037355,-500.0,0.00011227,2]
[323731507,1714215037365,-500.0,0.00011227,2]
[323731508,1714215037375,-500.0,0.00011227,2]
[323731509,1714215037384,-500.0,0.00011227,2]
[323731510,1714215037393,-500.0,0.00011227,2]
[323731511,1714215037403,-529.65,0.00011227,2]
[323731512,1714215037412,-500.0,0.00011227,2]
[323731513,1714215037421,-500.0,0.00011227,2]
[323731514,1714215037431,-503.47149608,0.00011227,2]
[323731515,1714215037440,-500.0,0.00011227,2]
[323731516,1714215037449,-500.0,0.00011227,2]
[323731517,1714215037459,-500.0,0.00011227,2]
[323731518,1714215037468,-500.0,0.00011227,2]
[323731519,1714215037478,-500.0,0.00011227,2]
[323731520,1714215037487,-415.01750535,0.00011227,2]
[323731521,1714215037497,-500.0,0.00011227,2]
[323731522,1714215037506,-596.85073709,0.00011227,2]
[323731523,1714215037516,-500.0,0.00011227,2]
[323731524,1714215037526,-199.424918,0.00011227,2]
[323731525,1714215037536,-500.0,0.00011227,2]
[323731526,1714215037545,-500.0,0.00011227,2]
[323731527,1714215037555,-396.61650527,0.00011227,2]
[323731528,1714215037748,-103.38349473,0.00011227,2]
[323731529,1714215037758,-576.19,0.00011227,2]
[323731530,1714215037769,-76.46461228,0.00011227,2]
[323731531,1714215037790,-295.44814184,0.00011227,2]
[323731532,1714215037802,-128.08724588,0.00011227,2]
[323731533,1714215037812,-500.0,0.00011227,2]
[323731534,1714215037822,-283.59275412,0.00011227,2]
[323731535,1714215037838,-240.27270231,0.00011227,2]
[323731536,1714215037848,-254.77761191,0.00011227,2]
[323731537,1714215037872,-245.22238809,0.00011227,2]
[323731538,1714215037881,-500.0,0.00011227,2]
[323731539,1714215037891,-58.37761195,0.00011227,2]
[323731567,1714215038477,-578.41156681,0.00011227,2]
[323731569,1714215038489,-1730.63843319,0.00011227,2]
[323731571,1714215038498,-500.0,0.00011227,2]
[323731573,1714215038507,-500.0,0.00011227,2]
[323731575,1714215038516,-748.67676737,0.00011227,2]
[323731577,1714215038527,-547.41323263,0.00011227,2]
[323731578,1714215038537,-380.03891924,0.00011227,2]
[323731579,1714215038548,-433.58108076,0.00011227,2]
[323731580,1714215038557,-500.0,0.00011227,2]
[323731581,1714215038566,-500.0,0.00011227,2]
[323731582,1714215038575,-500.0,0.00011227,2]
[323731583,1714215038584,-620.51,0.00011227,2]
[323731584,1714215038593,-500.0,0.00011227,2]
[323731585,1714215038604,-500.0,0.00011227,2]
[323731586,1714215038613,-500.0,0.00011227,2]
[323731587,1714215038622,-500.0,0.00011227,2]
[323731588,1714215038631,-500.0,0.00011227,2]
[323731589,1714215038640,-873.06,0.00011227,2]
[323731590,1714215038649,-552.47599936,0.00011227,2]
[323731591,1714215038668,-971.49400064,0.00011227,2]
[323731592,1714215038677,-500.0,0.00011227,2]
[323731593,1714215038686,-320.06,0.00011227,2]
[323731595,1714215038696,-500.0,0.00011227,2]
[323731597,1714215038705,-500.0,0.00011227,2]
[323731599,1714215038714,-213.5,0.00011227,2]
[323731600,1714215038723,-81.34599939,0.00011227,2]
[323731601,1714215038742,-418.65400061,0.00011227,2]
[323731603,1714215038751,-500.0,0.00011227,2]
[323731604,1714215038760,-500.0,0.00011227,2]
[323731605,1714215038769,-226.24,0.00011227,2]
[323731606,1714215038778,-500.0,0.00011227,2]
[323731607,1714215038788,-500.0,0.00011227,2]
[323731608,1714215038797,-1422.61,0.00011227,2]
[323731609,1714215038806,-285.29294847,0.00011227,2]
[323731610,1714215038816,-500.0,0.00011227,2]
[323731611,1714215038825,-500.0,0.00011227,2]
[323731612,1714215038835,-500.0,0.00011227,2]
[323731613,1714215038844,-500.0,0.00011227,2]
[323731614,1714215038856,-500.0,0.00011227,2]
[323731615,1714215038865,-500.0,0.00011227,2]
[323731616,1714215038875,-251.591952,0.00011227,2]
[323731617,1714215038885,-500.0,0.00011227,2]
[323731618,1714215038894,-858.93,0.00011227,2]
[323731619,1714215038904,-251.591952,0.00011227,2]
[323731620,1714215038913,-574.21762735,0.00011227,2]
[323731621,1714215038923,-251.591952,0.00011227,2]
[323731622,1714215038932,-251.591952,0.00011227,2]
[323731623,1714215038941,-251.591952,0.00011227,2]
[323731624,1714215038950,-251.591952,0.00011227,2]
[323731625,1714215038959,-500.0,0.00011227,2]
[323731626,1714215038969,-500.0,0.00011227,2]
[323731627,1714215038981,-251.591952,0.00011227,2]
[323731628,1714215038990,-251.591952,0.00011227,2]
[323731629,1714215038999,-251.591952,0.00011227,2]
[323731630,1714215039008,-500.0,0.00011227,2]
[323731631,1714215039019,-500.0,0.00011227,2]
[323731632,1714215039028,-251.591952,0.00011227,2]
[323731633,1714215039036,-251.591952,0.00011227,2]
[323731634,1714215039046,-251.591952,0.00011227,2]
[323731636,1714215039055,-500.0,0.00011227,2]
[323731638,1714215039065,-251.591952,0.00011227,2]
[323731640,1714215039074,-251.591952,0.00011227,2]
[323731641,1714215039082,-251.591952,0.00011227,2]
[323731643,1714215039092,-765.47,0.00011227,2]
[323731646,1714215039102,-251.591952,0.00011227,2]
[323731648,1714215039111,-500.0,0.00011227,2]
[323731650,1714215039120,-500.0,0.00011227,2]
[323731651,1714215039130,-500.0,0.00011227,2]
[323731653,1714215039139,-500.0,0.00011227,2]
[323731655,1714215039149,-500.0,0.00011227,2]
[323731657,1714215039158,-203.67083864,0.00011227,2]
[323731659,1714215039167,-500.0,0.00011227,2]
[323731661,1714215039176,-500.0,0.00011227,2]
[323731662,1714215039184,-500.0,0.00011227,2]
[323731663,1714215039193,-500.0,0.00011227,2]
[323731664,1714215039202,-500.0,0.00011227,2]
[323731665,1714215039211,-500.0,0.00011227,2]
[323731666,1714215039221,-500.0,0.00011227,2]
[323731667,1714215039230,-500.0,0.00011227,2]
[323731668,1714215039239,-594.51,0.00011227,2]
[323731669,1714215039248,-521.66,0.00011227,2]
[323731670,1714215039258,-500.0,0.00011227,2]
[323731671,1714215039268,-607.12,0.00011227,2]
[323731672,1714215039278,-183.50270827,0.00011227,2]
[323731673,1714215039287,-1027.297794,0.00011227,2]
[323731674,1714215039296,-1027.297794,0.00011227,2]
[323731675,1714215039305,-1027.297794,0.00011227,2]
[323731676,1714215039314,-1027.297794,0.00011227,2]
[323731677,1714215039323,-1027.297794,0.00011227,2]
[323731678,1714215039333,-500.0,0.00011227,2]
[323731679,1714215039342,-1027.297794,0.00011227,2]
[323731680,1714215039352,-1027.297794,0.00011227,2]
[323731681,1714215039361,-1027.297794,0.00011227,2]
[323731682,1714215039371,-1027.297794,0.00011227,2]
[323731683,1714215039380,-1027.297794,0.00011227,2]
[323731684,1714215039389,-500.0,0.00011227,2]
[323731685,1714215039399,-280.59943625,0.00011227,2]
[323731686,1714215039412,-746.69835775,0.00011227,2]
[323731687,1714215039422,-1027.297794,0.00011227,2]
[323731688,1714215039431,-1027.297794,0.00011227,2]
[323731689,1714215039441,-1027.297794,0.00011227,2]
[323731690,1714215039450,-1027.297794,0.00011227,2]
[323731691,1714215039459,-228.77046625,0.00011227,2]
[323731699,1714215040310,-1242.08,0.00011226,2]
[323731700,1714215040320,-798.52732775,0.00011227,2]
[323731701,1714215040329,-500.0,0.00011227,2]
[323731702,1714215040338,-965.72,0.00011227,2]
[323731703,1714215040348,-500.0,0.00011227,2]
[323731704,1714215040358,-500.0,0.00011227,2]
[323731705,1714215040366,-500.0,0.00011227,2]
[323731706,1714215040376,-880.36,0.00011227,2]
[323731707,1714215040385,-899.29,0.00011227,2]
[323731708,1714215040394,-143.3388276,0.00011227,2]
[323731709,1714215040424,-356.6611724,0.00011227,2]
[323731710,1714215040433,-151.0,0.00011227,2]
[323731711,1714215040442,-151.0,0.00011227,2]
[323731712,1714215040451,-151.0,0.00011227,2]
[323731713,1714215040461,-84.12094668,0.00011227,2]
[323731714,1714215040472,-66.87905332,0.00011227,2]
[323731715,1714215040481,-368.17988789,0.00011227,2]
[323731716,1714215040727,-401.91663883,0.00011207,2]
[323731717,1714215040739,-320.03464,0.00011207,2]
[323731718,1714215040751,-357.84075312,0.00011207,2]
[323731719,1714215040760,-131.82011211,0.00011227,2]
[323731720,1714215040769,-151.0,0.00011227,2]
[323731721,1714215040778,-151.0,0.00011227,2]
[323731722,1714215040787,-148.7633583,0.00011227,2]
[323731724,1714215040806,-2.2366417,0.00011227,2]
[323731726,1714215040815,-151.0,0.00011227,2]
[323731728,1714215040824,-171.542757,0.00011227,2]
[323731730,1714215040833,-171.542757,0.00011227,2]
[323731731,1714215040842,-159.8178443,0.00011227,2]
[323731733,1714215040855,-11.7249127,0.00011227,2]
[323731735,1714215040864,-171.542757,0.00011227,2]
[323731737,1714215040872,-171.542757,0.00011227,2]
[323731739,1714215040881,-288.16926631,0.00011227,2]
[323731740,1714215040892,-211.83073369,0.00011227,2]
[323731741,1714215040901,-171.542757,0.00011227,2]
[323731742,1714215040910,-171.542757,0.00011227,2]
[323731743,1714215040919,-500.0,0.00011227,2]
[323731744,1714215040927,-171.542757,0.00011227,2]
[323731745,1714215040937,-171.542757,0.00011227,2]
[323731746,1714215040945,-171.542757,0.00011227,2]
[323731747,1714215040954,-171.542757,0.00011227,2]
[323731748,1714215040965,-171.542757,0.00011227,2]
[323731749,1714215040976,-500.0,0.00011227,2]
[323731750,1714215040985,-171.542757,0.00011227,2]
[323731751,1714215040994,-171.542757,0.00011227,2]
[323731752,1714215041003,-513.76514895,0.00011227,2]
[323731753,1714215041012,-171.542757,0.00011227,2]
[323731754,1714215041022,-1380.75,0.00011227,2]
[323731755,1714215041031,-171.542757,0.00011227,2]
[323731756,1714215041040,-500.0,0.00011227,2]
[323731757,1714215041050,-500.0,0.00011227,2]
[323731758,1714215041059,-500.0,0.00011227,2]
[323731759,1714215041068,-500.0,0.00011227,2]
[323731760,1714215041078,-1308.02,0.00011227,2]
[323731761,1714215041088,-500.0,0.00011227,2]
[323731762,1714215041097,-500.0,0.00011227,2]
[323731763,1714215041106,-500.0,0.00011227,2]
[323731764,1714215041115,-2297.3,0.00011227,2]
[323731765,1714215041125,-326.42020553,0.00011227,2]
[323731766,1714215041134,-539.28,0.00011227,2]
[323731767,1714215041143,-500.0,0.00011227,2]
[323731768,1714215041152,-500.0,0.00011227,2]
[323731769,1714215041162,-1823.59,0.00011227,2]
[323731770,1714215041171,-500.0,0.00011227,2]
[323731771,1714215041180,-500.0,0.00011227,2]
[323731772,1714215041189,-500.0,0.00011227,2]
[323731773,1714215041198,-625.3,0.00011227,2]
[323731774,1714215041207,-850.45,0.00011227,2]
[323731775,1714215041217,-500.0,0.00011227,2]
[323731776,1714215041227,-500.0,0.00011227,2]
[323731777,1714215041236,-500.0,0.00011227,2]
[323731778,1714215041245,-500.0,0.00011227,2]
[323731779,1714215041255,-500.0,0.00011227,2]
[323731780,1714215041264,-776.32,0.00011227,2]
[323731781,1714215041274,-500.0,0.00011227,2]
[323731782,1714215041283,-1298.15,0.00011227,2]
[323731783,1714215041293,-584.02317301,0.00011227,2]
[323731784,1714215041302,-863.41,0.00011227,2]
[323731785,1714215041312,-500.0,0.00011227,2]
[323731786,1714215041321,-548.38,0.00011227,2]
[323731787,1714215041330,-500.0,0.00011227,2]
[323731788,1714215041339,-500.0,0.00011227,2]
[323731789,1714215041348,-500.0,0.00011227,2]
[323731790,1714215041359,-4291.24,0.00011227,2]
[323731791,1714215041369,-500.0,0.00011227,2]
[323731792,1714215041378,-500.0,0.00011227,2]
[323731793,1714215041388,-576.76,0.00011227,2]
[323731794,1714215041397,-500.0,0.00011227,2]
[323731795,1714215041406,-543.41,0.00011227,2]
[323731796,1714215041416,-500.0,0.00011227,2]
[323731797,1714215041426,-500.0,0.00011227,2]
[323731798,1714215041435,-413.995674,0.00011227,2]
[323731799,1714215041444,-3505.42,0.00011227,2]
[323731800,1714215041453,-413.995674,0.00011227,2]
[323731801,1714215041462,-413.995674,0.00011227,2]
[323731802,1714215041472,-151.0,0.00011227,2]
[323731803,1714215041481,-413.995674,0.00011227,2]
[323731804,1714215041490,-151.0,0.00011227,2]